fUST/lending_fUST_20250827
["ID","MTS","AMOUNT","RATE_DAILY","PERIOD"]
[381582004,1756289465079,-815.75,0.00023431,2]
[381582006,1756289465088,-743.87,0.00023431,2]
[381582008,1756289465098,-480.0,0.00023431,2]
[381582010,1756289465107,-480.0,0.00023431,2]
[381582012,1756289465117,-480.0,0.00023431,2]
[381582014,1756289465126,-151.0,0.00023439,2]
[381582016,1756289465135,-500.0,0.00023439,2]
[381582018,1756289465145,-500.0,0.00023439,2]
[381582020,1756289465155,-500.0,0.00023439,2]
[381582022,1756289465165,-604.0,0.00023439,2]
[381582024,1756289465175,-500.0,0.00023439,2]
[381582026,1756289465184,-500.0,0.00023439,2]
[381582028,1756289465193,-151.0,0.00023439,2]
[381582030,1756289465202,-557.0,0.00023439,2]
[381582031,1756289465212,-151.0,0.00023439,2]
[381582033,1756289465222,-151.0,0.00023439,2]
[381582035,1756289465231,-151.0,0.00023439,2]
[381582037,1756289465241,-151.0,0.00023439,2]
[381582039,1756289465251,-1067.0,0.00023439,2]
[381582041,1756289465260,-151.0,0.00023439,2]
[381582043,1756289465269,-500.0,0.00023439,2]
[381582045,1756289465278,-500.0,0.00023439,2]
[381582047,1756289465287,-151.0,0.00023439,2]
[381582049,1756289465297,-500.0,0.00023439,2]
[381582051,1756289465306,-151.0,0.00023439,2]
[381582053,1756289465315,-151.0,0.00023439,2]
[381582055,1756289465325,-500.0,0.00023439,2]
[381582057,1756289465335,-151.0,0.00023439,2]
[381582059,1756289465344,-500.0,0.00023439,2]
[381582061,1756289465354,-500.0,0.00023439,2]
[381582063,1756289465364,-622.77036887,0.00023439,2]
[381582065,1756289465373,-480.0,0.00023454,2]
[381582067,1756289465383,-480.0,0.00023454,2]
[381582069,1756289465392,-496.76,0.00023456,3]
[381582071,1756289465402,-480.0,0.00023458,2]
[381582073,1756289465411,-731.92,0.00023458,2]
[381582075,1756289465421,-1069.75,0.00023458,2]
[381582077,1756289465430,-1626.41,0.00023458,2]
[381582079,1756289465440,-669.83,0.00023458,2]
[381582081,1756289465449,-480.0,0.00023458,2]
[381582083,1756289465459,-679.13,0.0002346,2]
[381582085,1756289465468,-765.23,0.0002346,2]
[381582087,1756289465478,-480.0,0.0002346,2]
[381582089,1756289465487,-480.0,0.0002346,2]
[381582091,1756289465497,-1872.79,0.0002346,2]
[381582093,1756289465506,-3317.95,0.0002346,2]
[381582095,1756289465515,-572.11,0.0002346,2]
[381582097,1756289465525,-480.0,0.0002346,2]
[381582099,1756289465534,-946.94,0.0002346,2]
[381582101,1756289465543,-480.0,0.0002346,2]
[381582103,1756289465553,-589.41,0.0002346,2]
[381582105,1756289465562,-559.85,0.0002346,2]
[381582107,1756289465572,-480.0,0.00023461,2]
[381582109,1756289465583,-480.0,0.00023461,2]
[381582111,1756289465592,-480.0,0.00023461,2]
[381582113,1756289465602,-480.0,0.00023461,2]
[381582115,1756289465611,-480.0,0.00023461,2]
[381582117,1756289465620,-480.0,0.00023461,2]
[381582119,1756289465630,-480.0,0.00023461,2]
[381582121,1756289465639,-480.0,0.00023461,2]
[381582123,1756289465649,-480.0,0.00023461,2]
[381582125,1756289465658,-480.0,0.00023461,2]
[381582127,1756289465667,-480.0,0.00023461,2]
[381582129,1756289465676,-480.0,0.00023461,2]
[381582131,1756289465685,-480.0,0.00023461,2]
[381582133,1756289465694,-480.0,0.00023461,2]
[381582135,1756289465704,-480.0,0.00023461,2]
[381582137,1756289465713,-480.0,0.00023461,2]
[381582139,1756289465722,-480.0,0.00023461,2]
[381582140,1756289465731,-2423.54,0.00023461,2]
[381582142,1756289465740,-480.0,0.00023461,2]
[381582144,1756289465750,-480.0,0.00023461,2]
[381582145,1756289465760,-480.0,0.00023461,2]
[381582146,1756289465769,-1010.26,0.00023461,2]
[381582147,1756289465778,-815.03,0.00023461,2]
[381582148,1756289465787,-1044.63,0.00023461,2]
[381582149,1756289465797,-480.0,0.00023461,2]
[381582150,1756289465806,-480.0,0.00023461,2]
[381582151,1756289465816,-480.0,0.00023461,2]
[381582152,1756289465825,-480.0,0.00023461,2]
[381582153,1756289465835,-480.0,0.00023461,2]
[381582154,1756289465845,-730.74,0.00023461,2]
[381582156,1756289465854,-742.5,0.00023461,2]
[381582158,1756289465863,-591.85,0.00023461,2]
[381582160,1756289465872,-480.0,0.00023461,2]
[381582162,1756289465882,-480.0,0.00023462,2]
[381582164,1756289465891,-821.76,0.00023462,2]
[381582166,1756289465900,-480.0,0.00023462,2]
[381582168,1756289465910,-480.0,0.00023462,2]
[381582170,1756289465921,-480.0,0.00023462,2]
[381582172,1756289465931,-480.0,0.00023462,2]
[381582174,1756289465941,-480.0,0.00023462,2]
[381582176,1756289465950,-480.0,0.00023462,2]
[381582178,1756289465959,-480.0,0.00023462,2]
[381582180,1756289465968,-480.0,0.00023462,2]
[381582182,1756289465978,-480.0,0.00023462,2]
[381582184,1756289465987,-480.0,0.00023462,2]
[381582186,1756289465997,-480.0,0.00023462,2]
[381582188,1756289466006,-678.6,0.00023462,2]
[381582190,1756289466015,-983.64,0.00023462,2]
[381582192,1756289466024,-877.75,0.00023462,2]
[381582194,1756289466035,-480.0,0.00023462,2]
[381582196,1756289466045,-480.0,0.00023462,2]
[381582198,1756289466054,-480.0,0.00023462,2]
[381582200,1756289466064,-480.0,0.00023462,2]
[381582202,1756289466078,-480.0,0.00023462,2]
[381582204,1756289466096,-480.0,0.00023462,2]
[381582206,1756289466105,-395.08527129,0.00023462,2]
[381582208,1756289466115,-480.0,0.00023462,2]
[381582210,1756289466123,-480.0,0.00023462,2]
[381582212,1756289466133,-480.0,0.00023462,2]
[381582214,1756289466142,-480.0,0.00023462,2]
[381582216,1756289466152,-569.38,0.00023462,2]
[381582218,1756289466161,-480.0,0.00023462,2]
[381582220,1756289466171,-481.43,0.00023462,2]
[381582222,1756289466180,-480.0,0.00023462,2]
[381582224,1756289466189,-151.0,0.00023462,7]
[381582226,1756289466198,-151.0,0.00023462,7]
[381582228,1756289466208,-151.0,0.00023462,7]
[381582230,1756289466217,-480.0,0.00023462,2]
[381582232,1756289466226,-540.61,0.00023462,2]
[381582234,1756289466235,-480.0,0.00023462,2]
[381582236,1756289466245,-480.0,0.00023462,2]
[381582238,1756289466254,-151.0,0.00023462,7]
[381582240,1756289466263,-151.0,0.00023462,7]
[381582242,1756289466273,-151.0,0.00023462,7]
[381582244,1756289466282,-480.0,0.00023462,2]
[381582246,1756289466291,-480.0,0.00023462,2]
[381582248,1756289466301,-480.0,0.00023462,2]
[381582250,1756289466311,-480.0,0.00023462,2]
[381582252,1756289466320,-480.0,0.00023462,2]
[381582254,1756289466329,-824.02,0.00023462,2]
[381582256,1756289466339,-151.0,0.00023462,7]
[381582258,1756289466349,-151.0,0.00023462,7]
[381582260,1756289466358,-151.0,0.00023462,7]
[381582262,1756289466367,-151.0,0.00023462,7]
[381582264,1756289466376,-290.01123324,0.00023462,7]
[381582266,1756289466386,-151.0,0.00023462,7]
[381582268,1756289466395,-543.91,0.00023462,2]
[381582270,1756289466404,-151.0,0.00023462,7]
[381582272,1756289466414,-151.0,0.00023462,7]
[381582274,1756289466424,-480.0,0.00023462,2]
[381582276,1756289466433,-480.0,0.00023462,2]
[381582278,1756289466442,-480.0,0.00023462,2]
[381582280,1756289466455,-480.0,0.00023462,2]
[381582282,1756289466464,-480.0,0.00023462,2]
[381582284,1756289466474,-480.0,0.00023462,2]
[381582286,1756289466483,-632.67,0.00023462,2]
[381582288,1756289466492,-166.058228,0.00023462,7]
[381582290,1756289466503,-480.0,0.00023462,2]
[381582292,1756289466512,-480.0,0.00023462,2]
[381582294,1756289466521,-480.0,0.00023462,2]
[381582296,1756289466538,-480.0,0.00023462,2]
[381582298,1756289466547,-225.716799,0.00023462,7]
[381582300,1756289466557,-151.0,0.00023462,7]
[381582302,1756289466572,-480.0,0.00023462,2]
[381582304,1756289466587,-480.0,0.00023462,2]
[381582306,1756289466597,-480.0,0.00023462,2]
[381582308,1756289466607,-641.67,0.00023462,2]
[381582310,1756289466622,-480.0,0.00023463,2]
[381582312,1756289466632,-1798.27,0.00023463,2]
[381582314,1756289466641,-1565.55,0.00023464,2]
[381582316,1756289466651,-1487.63,0.00023464,2]
[381582318,1756289466660,-3564.79,0.00023464,2]
[381582320,1756289466669,-1678.79,0.00023464,2]
[381582322,1756289466679,-480.0,0.00023464,2]
[381582324,1756289466688,-677.24,0.00023464,2]
[381582326,1756289466697,-3001.08,0.00023464,2]
[381582328,1756289466706,-2123.55,0.00023464,2]
[381582330,1756289466715,-570.64,0.00023465,2]
[381582332,1756289466725,-480.0,0.00023465,2]
[381582334,1756289466734,-480.0,0.00023465,2]
[381582336,1756289466743,-480.0,0.00023465,2]
[381582338,1756289466752,-480.0,0.00023465,2]
[381582340,1756289466761,-699.87,0.00023465,2]
[381582342,1756289466770,-589.43,0.00023465,2]
[381582344,1756289466780,-480.0,0.00023465,2]
[381582346,1756289466789,-480.0,0.00023465,2]
[381582348,1756289466799,-480.0,0.00023465,2]
[381582350,1756289466807,-480.0,0.00023465,2]
[381582352,1756289466816,-480.0,0.00023465,2]
[381582354,1756289466826,-480.0,0.00023465,2]
[381582356,1756289466835,-480.0,0.00023465,2]
[381582357,1756289466845,-480.0,0.00023465,2]
[381582360,1756289466854,-480.0,0.00023465,2]
[381582362,1756289466863,-480.0,0.00023465,2]
[381582363,1756289466872,-1296.08,0.00023465,2]
[381582366,1756289466883,-480.0,0.00023465,2]
[381582368,1756289466892,-151.0,0.00023465,7]
[381582369,1756289466902,-225.58822,0.00023465,7]
[381582371,1756289466911,-998.74,0.00023465,2]
[381582374,1756289466920,-480.0,0.00023465,2]
[381582375,1756289466930,-480.0,0.00023465,2]
[381582377,1756289466939,-480.0,0.00023465,2]
[381582379,1756289466949,-480.0,0.00023465,2]
[381582382,1756289466961,-151.0,0.00023465,7]
[381582384,1756289466970,-1110.68,0.00023465,2]
[381582386,1756289466979,-480.0,0.00023465,2]
[381582387,1756289466989,-480.0,0.00023465,2]
[381582389,1756289466998,-660.23,0.00023465,2]
[381582392,1756289467007,-480.0,0.00023465,2]
[381582394,1756289467017,-480.0,0.00023465,2]
[381582396,1756289467026,-480.0,0.00023465,2]
[381582397,1756289467036,-480.0,0.00023465,2]
[381582399,1756289467045,-760.63,0.00023465,2]
[381582401,1756289467054,-524.94,0.00023465,2]
[381582419,1756289467221,-480.0,0.00023465,2]
[381582421,1756289467236,-581.06,0.00023465,2]
[381582423,1756289467245,-703.2,0.00023465,2]
[381582425,1756289467255,-541.56,0.00023465,2]
[381582427,1756289467264,-3842.02,0.00023465,2]
[381582429,1756289467273,-480.0,0.00023465,2]
[381582431,1756289467282,-506.07,0.00023465,2]
[381582433,1756289467291,-480.0,0.00023465,2]
[381582435,1756289467301,-855.47,0.00023465,2]
[381582437,1756289467310,-552.43,0.00023465,2]
[381582439,1756289467319,-480.0,0.00023465,2]
[381582441,1756289467328,-676.34,0.00023465,2]
[381582443,1756289467337,-997.67,0.00023465,2]
[381582445,1756289467346,-500.0,0.00023465,2]
[381582447,1756289467356,-480.0,0.00023465,2]
[381582449,1756289467366,-480.0,0.00023465,2]
[381582451,1756289467375,-1905.17,0.00023465,2]
[381582453,1756289467385,-732.81,0.00023465,2]
[381582455,1756289467394,-480.0,0.00023465,2]
[381582456,1756289467404,-522.71,0.00023465,2]
[381582458,1756289467413,-485.54,0.00023465,2]
[381582461,1756289467423,-1210.7,0.00023465,2]
[381582463,1756289467433,-616.37,0.00023465,2]
[381582465,1756289467442,-487.65,0.00023465,2]
[381582467,1756289467451,-969.77,0.00023466,2]
[381582469,1756289467461,-480.0,0.00023466,2]
[381582471,1756289467471,-480.0,0.00023466,2]
[381582473,1756289467480,-480.0,0.00023466,2]
[381582475,1756289467490,-480.0,0.00023466,2]
[381582477,1756289467499,-531.26,0.00023466,2]
[381582479,1756289467509,-480.0,0.00023466,2]
[381582481,1756289467519,-480.0,0.00023466,2]
[381582483,1756289467528,-480.0,0.00023466,2]
[381582485,1756289467537,-576.98,0.00023466,2]
[381582487,1756289467546,-609.12,0.00023466,2]
[381582489,1756289467557,-480.0,0.00023466,2]
[381582491,1756289467566,-480.0,0.00023466,2]
[381582493,1756289467575,-480.0,0.00023466,2]
[381582495,1756289467584,-480.0,0.00023466,2]
[381582497,1756289467593,-480.0,0.00023466,2]
[381582499,1756289467602,-480.0,0.00023466,2]
[381582501,1756289467612,-480.0,0.00023466,2]
[381582503,1756289467621,-480.0,0.00023466,2]
[381582505,1756289467630,-480.0,0.00023466,2]
[381582506,1756289467640,-480.0,0.00023466,2]
[381582508,1756289467649,-615.06,0.00023466,2]
[381582510,1756289467659,-480.0,0.00023466,2]
[381582513,1756289467669,-811.56,0.00023466,2]
[381582515,1756289467679,-480.0,0.00023466,2]
[381582517,1756289467688,-480.0,0.00023466,2]
[381582519,1756289467697,-739.22,0.00023466,2]
[381582521,1756289467707,-480.0,0.00023466,2]
[381582523,1756289467718,-326.36396284,0.00023466,2]
[381582525,1756289467727,-480.0,0.00023466,2]
[381582527,1756289467736,-480.0,0.00023466,2]
[381582529,1756289467745,-151.0,0.00023466,7]
[381582531,1756289467755,-480.0,0.00023466,2]
[381582533,1756289467764,-480.0,0.00023466,2]
[381582535,1756289467773,-773.72,0.00023466,2]
[381582537,1756289467785,-480.0,0.00023466,2]
[381582539,1756289467798,-480.0,0.00023466,2]
[381582541,1756289467807,-151.0,0.00023466,7]
[381582543,1756289467818,-480.0,0.00023466,2]
[381582545,1756289467827,-480.0,0.00023466,2]
[381582547,1756289467836,-519.3,0.00023466,2]
[381582549,1756289467846,-480.0,0.00023466,2]
[381582551,1756289467855,-480.0,0.00023466,2]
[381582553,1756289467864,-480.0,0.00023466,2]
[381582555,1756289467873,-480.0,0.00023466,2]
[381582557,1756289467882,-480.0,0.00023466,2]
[381582559,1756289467892,-569.32,0.00023466,2]
[381582561,1756289467901,-480.0,0.00023466,2]
[381582563,1756289467910,-480.0,0.00023466,2]
[381582565,1756289467919,-480.0,0.00023466,2]
[381582567,1756289467928,-480.0,0.00023466,2]
[381582568,1756289467940,-480.0,0.00023466,2]
[381582570,1756289467951,-270.93255882,0.00023466,2]
[381582572,1756289467961,-480.0,0.00023466,2]
[381582574,1756289467970,-319.49347917,0.00023466,2]
[381582577,1756289467980,-480.0,0.00023466,2]
[381582579,1756289467990,-480.0,0.00023466,2]
[381582581,1756289468001,-480.0,0.00023466,2]
[381582583,1756289468010,-480.0,0.00023466,2]
[381582585,1756289468019,-521.63,0.00023466,2]
[381582587,1756289468029,-480.0,0.00023466,2]
[381582589,1756289468039,-575.26,0.00023466,2]
[381582591,1756289468048,-159.69721002,0.00023466,2]
[381582593,1756289468057,-480.0,0.00023466,2]
[381582595,1756289468066,-480.0,0.00023466,2]
[381582597,1756289468084,-480.0,0.00023466,2]
[381582599,1756289468094,-778.94,0.00023466,2]
[381582601,1756289468103,-873.99,0.00023466,2]
[381582603,1756289468112,-837.99,0.00023466,2]
[381582605,1756289468122,-480.0,0.00023466,2]
[381582607,1756289468132,-480.0,0.00023466,2]
[381582609,1756289468141,-480.0,0.00023466,2]
[381582611,1756289468152,-494.87,0.00023466,2]
[381582613,1756289468161,-678.91,0.00023466,2]
[381582615,1756289468171,-491.75770807,0.00023466,2]
[381582617,1756289468180,-480.0,0.00023466,2]
[381582619,1756289468189,-508.08,0.00023466,2]
[381582621,1756289468199,-480.0,0.00023466,2]
[381582622,1756289468210,-484.67,0.00023466,2]
[381582624,1756289468221,-480.0,0.00023466,2]
[381582626,1756289468233,-480.0,0.00023466,2]
[381582628,1756289468243,-539.91,0.00023466,2]
[381582630,1756289468253,-480.0,0.00023466,2]
[381582632,1756289468263,-480.0,0.00023466,2]
[381582634,1756289468272,-480.0,0.00023466,2]
[381582636,1756289468281,-480.0,0.00023466,2]
[381582638,1756289468290,-613.6,0.00023466,2]
[381582640,1756289468300,-480.0,0.00023466,2]
[381582642,1756289468309,-925.94,0.00023466,2]
[381582644,1756289468319,-533.76,0.00023466,2]
[381582646,1756289468329,-537.77,0.00023466,2]
[381582648,1756289468339,-562.98,0.00023466,2]
[381582650,1756289468348,-480.0,0.00023466,2]
[381582652,1756289468357,-480.0,0.00023466,2]
[381582655,1756289468368,-536.26,0.00023466,2]
[381582657,1756289468377,-480.0,0.00023466,2]
[381582659,1756289468386,-480.0,0.00023466,2]
[381582661,1756289468395,-480.0,0.00023466,2]
[381582663,1756289468405,-480.0,0.00023466,2]
[381582665,1756289468415,-480.0,0.00023466,2]
[381582667,1756289468424,-480.0,0.00023466,2]
[381582669,1756289468434,-480.0,0.00023466,2]
[381582671,1756289468443,-256.95141726,0.00023466,2]
[381582673,1756289468452,-592.79,0.00023466,2]
[381582675,1756289468461,-575.25,0.00023466,2]
[381582677,1756289468470,-582.79,0.00023466,2]
[381582679,1756289468479,-480.0,0.00023466,2]
[381582681,1756289468488,-480.0,0.00023466,2]
[381582683,1756289468498,-594.5,0.00023466,2]
[381582685,1756289468507,-480.0,0.00023466,2]
[381582687,1756289468516,-602.33,0.00023466,2]
[381582689,1756289468526,-1500.0,0.00023468,2]
[381582691,1756289468535,-1500.0,0.00023468,2]
[381582693,1756289468545,-1500.0,0.00023468,2]
[381582695,1756289468554,-1500.0,0.00023468,2]
[381582697,1756289468563,-1500.0,0.00023468,2]
[381582699,1756289468572,-160.0,0.00023487,2]
[381582701,1756289468581,-153.0,0.0002349,2]
[381582703,1756289468591,-8404.79,0.00023495,2]
[381582705,1756289468600,-1727.42,0.00023495,2]
[381582707,1756289468609,-364.68880156,0.00023495,2]
[381584153,1756289486526,575.132526,0.00013699,2]
[381584177,1756289486739,575.132526,0.00020187,2]
[381584200,1756289529000,1624.40181984,0.000199,2]
[381584201,1756289529145,1624.40181967,0.00021627,2]
[381584210,1756289549511,1027.25769279,0.00021995,2]
[381584218,1756289576975,10000.0,0.00021091,2]
[381584229,1756289608062,20400.0,0.0002,2]
[381584243,1756289664659,1000.0,0.00021996,2]
[381584253,1756289704193,1524.19959073,0.000199,2]
[381584254,1756289704298,1524.19959058,0.00021627,2]
[381584277,1756289812293,203.1492067,0.00021083,2]
[381584283,1756289830633,1238.7719225,0.00021983,2]
[381584284,1756289835396,1738.10785341,0.0002205,2]
[381584290,1756289859003,2777.1300635,0.00021251,2]
[381584291,1756289861415,646.625937,0.00021083,2]
[381584297,1756289879912,1582.29974741,0.000199,2]
[381584299,1756289880032,1582.29974722,0.00021627,2]
[381584303,1756289893914,328.432044,0.00021083,2]
[381584314,1756289920505,3003.57841555,0.00019508,2]
[381584331,1756290003115,391.12634634,0.00021,10]
[381584334,1756290010042,155.0,0.00027397,120]
[381584341,1756290055022,1484.82341097,0.000199,2]
[381584342,1756290055131,1484.8234107,0.00021627,2]
[381584355,1756290115287,1083.92543224,0.00021982,2]
[381584378,1756290229158,1385.83518332,0.000199,2]
[381584379,1756290229264,1385.83518332,0.00021627,2]
[381584416,1756290400742,948.43475321,0.0002198,2]
[381584418,1756290405585,1293.44617135,0.000199,2]
[381584419,1756290405713,1293.44617109,0.00021627,2]
[381584421,1756290415118,-178.70982014,0.00022073,10]
[381584429,1756290479036,7359.29539098,0.00018,2]
[381584430,1756290486240,206.66494511,0.00021418,2]
[381584434,1756290502622,11960.0,0.00018,2]
[381584439,1756290519628,6849.496636,0.00017,2]
[381584441,1756290526318,904.02557113,0.0002,2]
[381584445,1756290541677,10000.0,0.00021081,2]
[381584449,1756290564331,12156.22794598,0.00031291,60]
[381584451,1756290570200,-484.09,0.00022074,10]
[381584452,1756290570228,-247.11950482,0.00022078,2]
[381584453,1756290570256,-300.0,0.00022078,2]
[381584454,1756290570339,-7937.59099036,0.00022079,2]
[381584455,1756290570395,-10000.01,0.00022079,2]
[381584456,1756290570634,-10000.01,0.00022079,2]
[381584457,1756290570816,-10000.01,0.00022079,2]
[381584458,1756290571071,-10000.01,0.00022079,2]
[381584459,1756290571394,-2062.36900964,0.00022079,2]
[381584460,1756290571424,-1200.0,0.00022079,2]
[381584461,1756290571452,-307.19272388,0.00022079,2]
[381584462,1756290571481,-500.0,0.00022079,2]
[381584463,1756290571509,-500.0,0.00022079,2]
[381584464,1756290571538,-360.88653296,0.00022079,2]
[381584465,1756290571826,-139.11346704,0.00022079,2]
[381584466,1756290571950,-500.0,0.00022079,2]
[381584467,1756290571979,-500.0,0.00022079,2]
[381584468,1756290572008,-500.0,0.00022079,2]
[381584469,1756290572037,-500.0,0.00022079,2]
[381584470,1756290572066,-500.0,0.00022079,2]
[381584471,1756290572093,-500.0,0.00022079,2]
[381584472,1756290572123,-500.0,0.00022079,2]
[381584473,1756290572152,-500.0,0.00022079,2]
[381584474,1756290572181,-500.0,0.00022079,2]
[381584475,1756290572210,-500.0,0.00022079,2]
[381584476,1756290572272,-500.0,0.00022079,2]
[381584477,1756290572300,-500.0,0.00022079,2]
[381584478,1756290572328,-500.0,0.00022079,2]
[381584479,1756290572356,-500.0,0.00022079,2]
[381584480,1756290572387,-331.54793397,0.00022079,2]
[381584481,1756290572416,-500.0,0.00022079,2]
[381584482,1756290572446,-500.0,0.00022079,2]
[381584483,1756290572477,-500.0,0.00022079,2]
[381584484,1756290572508,-500.0,0.00022079,2]
[381584485,1756290572538,-500.0,0.00022079,2]
[381584486,1756290572676,-611.26,0.00022079,2]
[381584487,1756290572708,-480.0,0.00022079,2]
[381584488,1756290572736,-637.59,0.00022079,2]
[381584489,1756290572764,-931.89,0.00022079,2]
[381584490,1756290572793,-623.13,0.0002208,2]
[381584491,1756290572823,-480.0,0.00022081,2]
[381584492,1756290572850,-480.0,0.00022081,2]
[381584493,1756290572876,-480.0,0.00022081,2]
[381584494,1756290572904,-72.27,0.00022081,2]
[381584495,1756290573042,-407.73,0.00022081,2]
[381584496,1756290573072,-480.0,0.00022081,2]
[381584497,1756290573103,-480.0,0.00022081,2]
[381584498,1756290573132,-480.0,0.00022081,2]
[381584499,1756290573162,-508.95,0.00022081,2]
[381584500,1756290573193,-737.73,0.00022081,2]
[381584501,1756290573222,-658.31,0.00022081,2]
[381584502,1756290573252,-480.0,0.00022081,2]
[381584503,1756290573281,-480.0,0.00022081,2]
[381584504,1756290573310,-94.57,0.00022081,2]
[381584505,1756290574205,-199.03413206,0.00022081,2]
[381584506,1756290574220,-186.39586794,0.00022081,2]
[381584507,1756290574231,-293.60413206,0.00022081,2]
[381584508,1756290574253,-186.39586794,0.00022081,2]
[381584509,1756290574263,-293.60413206,0.00022081,2]
[381584511,1756290580243,1213.92276705,0.000199,2]
[381584512,1756290580279,1213.92276677,0.00021627,2]
[381584513,1756290580312,-403.41,0.00022073,10]
[381584514,1756290580342,-186.39586794,0.00022081,2]
[381584515,1756290580370,-480.0,0.00022081,2]
[381584516,1756290580401,-480.0,0.00022081,2]
[381584517,1756290580428,-500.0,0.00022081,2]
[381584518,1756290580457,-480.0,0.00022081,2]
[381584519,1756290580486,-480.0,0.00022081,2]
[381584520,1756290580514,-480.0,0.00022081,2]
[381584521,1756290580544,-480.0,0.00022081,2]
[381584522,1756290580572,-498.84,0.00022081,2]
[381584523,1756290580600,-480.0,0.00022081,2]
[381584524,1756290580724,-2092.81,0.00022081,2]
[381584525,1756290580753,-480.0,0.00022081,2]
[381584526,1756290580781,-480.0,0.00022081,2]
[381584527,1756290580819,-480.0,0.00022081,2]
[381584528,1756290580862,-480.0,0.00022081,2]
[381584529,1756290580890,-480.0,0.00022081,2]
[381584530,1756290580917,-480.0,0.00022081,2]
[381584531,1756290581070,-892.46,0.00022081,2]
[381584532,1756290581098,-480.0,0.00022081,2]
[381584533,1756290581126,-480.0,0.00022081,2]
[381584534,1756290581154,-726.81,0.00022081,2]
[381584535,1756290581182,-931.56,0.00022081,2]
[381584536,1756290581209,-480.0,0.00022081,2]
[381584537,1756290581236,-480.0,0.00022081,2]
[381584538,1756290581263,-480.0,0.00022081,2]
[381584539,1756290581434,-480.0,0.00022081,2]
[381584540,1756290581462,-480.0,0.00022081,2]
[381584541,1756290581492,-480.0,0.00022081,2]
[381584542,1756290581520,-480.0,0.00022081,2]
[381584543,1756290581548,-603.33,0.00022081,2]
[381584544,1756290581576,-480.0,0.00022081,2]
[381584545,1756290581603,-480.0,0.00022081,2]
[381584546,1756290581630,-721.93,0.00022081,2]
[381584547,1756290581657,-480.0,0.00022081,2]
[381584548,1756290581685,-149.49,0.00022081,2]
[381584549,1756290581841,-330.51,0.00022081,2]
[381584550,1756290582078,-480.0,0.00022081,2]
[381584551,1756290582108,-480.0,0.00022081,2]
[381584552,1756290582138,-556.87,0.00022081,2]
[381584553,1756290582167,-480.0,0.00022081,2]
[381584554,1756290582374,-480.0,0.00022081,2]
[381584555,1756290582405,-480.0,0.00022081,2]
[381584556,1756290582434,-480.0,0.00022081,2]
[381584557,1756290582462,-160.0,0.00022082,2]
[381584558,1756290582491,-480.0,0.00022082,2]
[381584559,1756290582519,-480.0,0.00022082,2]
[381584560,1756290582819,-1419.27,0.00022082,2]
[381584561,1756290582847,-480.0,0.00022082,2]
[381584562,1756290582876,-480.0,0.00022082,2]
[381584563,1756290582904,-480.0,0.00022082,2]